Cogmind - Beta 14 @@@ ROGUE MODE // 2024.11.04 @ 13:10:32 Player: Shimmyarah Result: Self-destructed Performance ------------- Evolutions (3) 1500 Regions Visited (5) 1000 Robots Destroyed (56) 280 Value Destroyed (1505) 1505 Prototype IDs (2) 40 Alien Tech Used (0) 0 Bonus (-75) -75 TOTAL SCORE: 4250 Bonus ------- Friendly Fire -75 Cogmind --------- Core Integrity 517/700 Matter 300/300 Energy 0/100 System Corruption 3% Temperature Cool (0) Movement Rolling (105) Ox1 Location -7/Lower Caves Parts ------- > --- POWER (2) -------- (None) > --- PROPULSION (2) --- Armored Wheel Armored Wheel > --- UTILITY (4) ------ Sensor Array Transmission Jammer Advanced ECM Suite Improved Propulsion Shielding > --- WEAPON (5) ------- Plasma Cannon Minigun High-powered Shotgun Advanced EMP Blaster Mini Grenade Launcher > --- INVENTORY (5) ---- Flak Gun Peak State ------------ > --- POWER ------------ Improved Ion Engine Nuclear Core > --- PROPULSION ------- Armored Wheel Armored Wheel > --- UTILITY ---------- Sensor Array Transmission Jammer Advanced ECM Suite Improved Propulsion Shielding > --- WEAPON ----------- EM Pulse Cannon Heavy Particle Cannon Minigun Flak Gun Improved Light Cannon > --- INVENTORY -------- Improved Ion Engine Sensor Array High-powered Shotgun Advanced EMP Blaster [Rating: 37] Favorites ----------- Power Improved Ion Engine Engine Improved Ion Engine Power Core Nuclear Core Propulsion Light Treads Treads Light Treads Wheel Armored Wheel Hover Unit Hover Unit Utility Sensor Array Device Sensor Array Processor Signal Interpreter Protection Improved Propulsion Shielding Weapon Improved Light Cannon Energy Gun Heavy EM Pulse Gun Energy Cannon EM Pulse Cannon Ballistic Gun Minigun Ballistic Cannon Improved Light Cannon Launcher Advanced EMP Blaster Build | -11 -10 -9 -8 -7 -7 ------- Run | Yrd Mat Mat Mat Fac Low Slots Evolved 6 | . . 2 2 2 . Power 1 | . . . . 1 . Propulsion . | . . . . . . Utility 2 | . . 1 1 . . Weapon 3 | . . 1 1 1 . Parts Attached 66 | 7 4 35 6 9 5 Power 8 | 1 . 5 . 2 . Engine 7 | 1 . 5 . 1 . Core 1 | . . . . 1 . Reactor . | . . . . . . Propulsion 10 | 2 . 8 . . . Treads 6 | 2 . 4 . . . Leg . | . . . . . . Wheel 3 | . . 3 . . . Hover 1 | . . 1 . . . Flight . | . . . . . . Utility 12 | 2 1 4 1 3 1 Device 9 | 2 . 3 . 3 1 Storage . | . . . . . . Processor 2 | . 1 1 . . . Hackware . | . . . . . . Protection 1 | . . . 1 . . Artifact . | . . . . . . Weapon 36 | 2 3 18 5 4 4 Energy Gun 13 | 1 2 10 . . . Energy Cannon 4 | . . 1 1 2 . Ballistic Gun 13 | 1 1 6 2 1 2 Ballistic Cannon 2 | . . 1 . 1 . Launcher 4 | . . . 2 . 2 Special Weapon . | . . . . . . Impact Weapon . | . . . . . . Slashing Weapon . | . . . . . . Piercing Weapon . | . . . . . . Special Melee Weapon . | . . . . . . Unidentified Prototypes 2 | . . 1 1 . . Parts Lost 10 | . . 4 . 6 . Power 2 | . . . . 2 . Propulsion 1 | . . 1 . . . Utility 2 | . . 1 . 1 . Weapon 5 | . . 2 . 3 . Highest Loss Streak 3 | . . 3 . 3 . To Critical Strikes . | . . . . . . Average Slot Usage (%) 97 | . 100 98 96 96 83 Engine 10 | . 14 11 9 8 . Core 1 | . . . . 4 . Treads 11 | . 28 16 . . . Wheel 7 | . . 2 18 15 15 Hover 1 | . . 2 . . . Device 15 | . 27 11 9 17 22 Processor 12 | . . 21 18 4 . Protection 2 | . . . 7 7 7 Energy Gun 10 | . 14 16 7 . . Energy Cannon 4 | . . . 3 14 7 Ballistic Gun 13 | . 14 12 10 14 15 Ballistic Cannon 3 | . . 3 6 4 . Launcher 1 | . . . 6 1 14 Peak Build Rating 37 | 9 10 17 27 37 33 Average Rating 19 | 6 9 12 23 34 31 On Entrance 14 | . 9 8 17 27 23 Naked Turns . | . . . . . . Heaviest Build 44 | 9 12 19 28 44 27 Greatest Support 43 | 40 40 43 24 24 12 Greatest Overweight (x) 2 | 1 . 2 1 1 2 Average Overweight (x) . | . . . . . 2 Largest Inventory Capacity 5 | 5 5 5 5 5 5 Average Capacity 5 | 5 5 5 5 5 5 Most Carried 5 | 4 5 5 5 5 4 Average Carried 3 | 1 3 3 4 4 1 Final Capacity 5 | 5 5 5 5 5 5 Final Carried 5 | 2 5 4 5 5 1 Class Distribution -------------------- 35% | Skirmisher 24% | Scavenger-Skirmisher 18% | Infiltrator-Skirmisher 17% | Mutant Dominant Class ---------------- Mutant | -10/Materials Skirmisher | -9/Materials Skirmisher | -8/Materials Infiltrator-Skirmisher | -7/Factory Infiltrator-Skirmisher | -7/Lower Caves Resources | -11 -10 -9 -8 -7 -7 ----------- Run | Yrd Mat Mat Mat Fac Low Matter Collected 1328 | 282 76 579 167 88 136 Remotely . | . . . . . . Salvage Created 2100 | 138 342 1163 383 74 . Parts 148 | 10 23 82 31 2 . Haulers Intercepted . | . . . . . . Recyclers Shooed 2 | . . 2 . . . Parts Field Recycled . | . . . . . . Retrieved Matter . | . . . . . . Parts Self-Destructed . | . . . . . . Prevented . | . . . . . . Kills | -11 -10 -9 -8 -7 -7 ------- Run | Yrd Mat Mat Mat Fac Low Combat Hostiles Destroyed 34 | . 7 18 6 3 . Guns 20 | . 7 10 1 2 . Cannons 5 | . . 3 1 1 . AOE 7 | . . 4 3 . . Classes Destroyed 10 | 3 2 5 . . . Worker 4 | 1 . 2 1 . . Builder 3 | . . 2 1 . . Tunneler 2 | 2 . . . . . Recycler 4 | 1 . 2 1 . . Operator 3 | . . 1 2 . . Watcher 6 | . 1 5 . . . Swarmer 7 | . . 4 . 3 . Grunt 17 | . 7 5 5 . . Duelist 2 | . . 2 . . . Sentry 8 | . . 7 1 . . Best Kill Streak 7 | 2 4 7 7 2 . Combat Bots Only 5 | . 3 4 5 2 . Max Kills in Single Turn 3 | 1 1 3 2 1 . Gunslinging 1 | . . 1 . . . Exploded 2 | . . 2 1 . . Melee . | . . . . . . Uniques/NPCs Destroyed . | . . . . . . Combat | -11 -10 -9 -8 -7 -7 -------- Run | Yrd Mat Mat Mat Fac Low Hostile Shots Fired 181 | . 19 58 23 81 . Missed 45 | . 5 15 7 18 . Damage Taken 2301 | . 167 819 382 933 . Core 297 | . 22 65 27 183 . Absorbed by Shields . | . . . . . . Redirected to Shielding 99 | . . . 41 58 . Regen/Repaired (Parts) 67 | . . . 67 . . Core Remaining (%) 92 | 100 91 83 95 . . Volleys Fired 116 | 12 18 60 10 16 . Largest 5 | 2 2 3 4 5 . Hottest 230 | 60 65 157 143 230 . Shots Fired 289 | 24 36 160 33 36 . Gun 239 | 24 36 143 14 22 . Cannon 41 | . . 17 10 14 . Launcher 9 | . . . 9 . . Special . | . . . . . . Kinetic 160 | 12 18 86 20 24 . Thermal 39 | 12 . 21 . 6 . Explosive . | . . . . . . Electromagnetic 90 | . 18 53 13 6 . Robot Hit Streak 11 | 6 4 11 4 4 . Robot Miss Streak 20 | 1 2 4 3 20 . Penetration Max . | . . . . . . Secondary Targets 6 | . 2 4 . . . Max Gunslinging Chain 1 | . 1 1 . . . Shots Hit Robots 158 | 16 19 91 17 15 . Core Hits 92 | 7 12 45 19 9 . Critical Kills . | . . . . . . Critical Parts Destroyed . | . . . . . . Critical Strikes 3 | . 1 1 1 . . Burn 1 | . . 1 . . . Blast 1 | . . . 1 . . Corrupt 1 | . 1 . . . . Melee Attacks . | . . . . . . Impact . | . . . . . . Slashing . | . . . . . . Piercing . | . . . . . . Sneak Attacks . | . . . . . . Combat Hostiles . | . . . . . . Follow-up Attacks . | . . . . . . Damage Inflicted 3215 | 144 295 1582 809 385 . Guns 1908 | 144 295 1070 139 260 . Cannons 423 | . . 213 90 120 . Explosions 879 | . . 299 580 . . Melee . | . . . . . . Ramming 5 | . . . . 5 . Kinetic 1174 | 77 60 560 194 283 . Thermal 639 | 67 . 457 40 75 . Explosive 171 | . . . 171 . . Electromagnetic 1226 | . 235 565 404 22 . Impact . | . . . . . . Slashing . | . . . . . . Piercing . | . . . . . . Highest Corruption 7 | . . 7 1 3 3 Average Corruption 3 | . . 4 1 2 3 Corruption Purged . | . . . . . . Corruption Blocked . | . . . . . . Effects 25 | . . 21 1 1 2 Message Errors 5 | . . 4 . . 1 Matter Fused 7 | . . 6 . . 1 Heat Flow Errors 1 | . . 1 . . . Energy Discharges 7 | . . 5 1 1 . Parts Rejected 1 | . . 1 . . . Data Loss (major) 2 | . . 2 . . . Misfires 1 | . . 1 . . . Weapon Failures 1 | . . 1 . . . Overload Shots . | . . . . . . Overflow Damage 27 | . . 27 . . . Projectiles . | . . . . . . Explosions 27 | . . 27 . . . Melee . | . . . . . . Knockbacks . | . . . . . . Impact . | . . . . . . Kinetic . | . . . . . . Secondary . | . . . . . . Self-Inflicted Damage 237 | . . 87 148 2 . Shots 6 | . . 2 4 . . Rammed 2 | . . 1 . 1 . Targets Rammed 2 | . . 1 . 1 . Kicked . | . . . . . . Crushed . | . . . . . . Highest Temperature 597 | 40 94 303 339 597 . Average Temperature 107 | 16 29 85 156 283 . Received Heat Transfer 480 | . 93 252 126 9 . Effects 13 | . . 4 2 7 . Shutdowns 3 | . . . . 3 . Energy Bleed 2 | . . 1 . 1 . Interference 7 | . . 3 2 2 . Damage (minor) 1 | . . . . 1 . Siege Activations . | . . . . . . Robots Corrupted 2 | . . 1 1 . . Combat Hostiles 2 | . . 1 1 . . Parts Fried . | . . . . . . Impact Corruptions . | . . . . . . Robots Melted . | . . . . . . Combat Hostiles . | . . . . . . Parts Melted . | . . . . . . Heat Transferred 1142 | 150 . 831 50 111 . Parts Sabotaged . | . . . . . . Parts Stolen . | . . . . . . Parts Stripped . | . . . . . . Power Chain Reactions 6 | . . 5 1 . . Alert | -11 -10 -9 -8 -7 -7 ------- Run | Yrd Mat Mat Mat Fac Low Peak Influence 348 | 20 123 208 348 80 . Initial 67 | . 13 44 65 67 . Average 83 | 8 44 89 258 35 . Maximum Alert Level 1 | . . 1 1 . . Low Security (%) 92 | 100 100 99 27 100 . Level 1 7 | . . . 72 . . Level 2 . | . . . . . . Level 3 . | . . . . . . Level 4 . | . . . . . . Level 5 . | . . . . . . High Security . | . . . . . . Max Security . | . . . . . . Squads Dispatched 8 | . 3 1 2 2 . Investigation 3 | . 2 . 1 . . Extermination 1 | . . . . 1 . Reinforcement 4 | . 1 1 1 1 . Assault . | . . . . . . Garrison . | . . . . . . Intercept . | . . . . . . Searches Triggered . | . . . . . . Construction Impeded . | . . . . . . Haulers Reinforced . | . . . . . . Active Scanning Responses . | . . . . . . Cargo Convoy Interrupts . | . . . . . . Stealth | -11 -10 -9 -8 -7 -7 --------- Run | Yrd Mat Mat Mat Fac Low Distress Signals 3 | . 1 1 1 . . Communications Jammed 3 | . . . . 3 . Distress Signals 3 | . . . . 3 . Times Spotted 52 | . 10 26 7 9 . Peak Tracking Total 5 | . 3 4 4 5 . Tactical Retreats 2 | . . 1 . 1 . Traps | -11 -10 -9 -8 -7 -7 ------- Run | Yrd Mat Mat Mat Fac Low Traps Triggered 5 | . 2 2 . 1 . Indirectly . | . . . . . . Trap Hack Attempts . | . . . . . . Triggered . | . . . . . . Disarmed . | . . . . . . Reprogrammed . | . . . . . . Reused . | . . . . . . Traps Extracted . | . . . . . . Installed . | . . . . . . Triggered . | . . . . . . Machines | -11 -10 -9 -8 -7 -7 ---------- Run | Yrd Mat Mat Mat Fac Low Machines Disabled 6 | . . 1 3 2 . Max in Single Turn 1 | . . 1 1 1 . Machines Repaired . | . . . . . . Machines Dismantled . | . . . . . . Machines Sabotaged . | . . . . . . Overloaded Fab Kills . | . . . . . . Hacking | -11 -10 -9 -8 -7 -7 --------- Run | Yrd Mat Mat Mat Fac Low Machines Accessed 4 | . . 1 2 1 . Terminals 1 | . . 1 . . . Fabricators 1 | . . . . 1 . Repair Stations 1 | . . . 1 . . Recycling Units . | . . . . . . Scanalyzers 1 | . . . 1 . . Garrison Access . | . . . . . . Total Hacks 10 | . . 1 8 1 . Successful 7 | . . 1 6 . . Failed 3 | . . . 2 1 . Catastrophic . | . . . . . . Database Lockouts . | . . . . . . Manual . | . . . . . . Terminals 1 | . . 1 . . . Fabricators 1 | . . . . 1 . Repair Stations 5 | . . . 5 . . Recycling Units . | . . . . . . Scanalyzers 3 | . . . 3 . . Garrison Access . | . . . . . . Terminal Hacks 1 | . . 1 . . . Transport Status 1 | . . 1 . . . Fabricator Hacks . | . . . . . . Repair Station Hacks 3 | . . . 3 . . Scan Component 2 | . . . 2 . . Repair 1 | . . . 1 . . Recycling Unit Hacks . | . . . . . . Scanalyzer 3 | . . . 3 . . Insert Component 1 | . . . 1 . . Analyze 2 | . . . 2 . . Garrison Access Hacks . | . . . . . . Unauthorized Hacks . | . . . . . . Terminals . | . . . . . . Fabricators . | . . . . . . Repair Stations . | . . . . . . Recycling Units . | . . . . . . Scanalyzers . | . . . . . . Garrison Access . | . . . . . . Data Cores Recovered 1 | . . 1 . . . Used . | . . . . . . Hacking Detections 1 | . . . . 1 . Full Trace Events . | . . . . . . Feedback Events . | . . . . . . Feedback Blocked . | . . . . . . Robot Schematics Acquired . | . . . . . . Robots Built . | . . . . . . Authchips . | . . . . . . Time . | . . . . . . Total Robot Build Rating . | . . . . . . Part Schematics Acquired 1 | . . . 1 . . Parts Built . | . . . . . . Authchips . | . . . . . . Time . | . . . . . . Total Part Build Rating . | . . . . . . Parts Repaired 1 | . . . 1 . . Time 60 | . . . 60 . . Parts Recycled . | . . . . . . Recycled Matter . | . . . . . . Retrieved Matter . | . . . . . . Retrieved Components . | . . . . . . Parts Scanalyzed 1 | . . . 1 . . Part Schematics Acquired 1 | . . . 1 . . Parts Damaged . | . . . . . . Bothacking | -11 -10 -9 -8 -7 -7 ------------ Run | Yrd Mat Mat Mat Fac Low Used RIF Installer . | . . . . . . Robots Hacked . | . . . . . . Non-combat . | . . . . . . Combat . | . . . . . . Robot Hacks Applied . | . . . . . . Relay Couplers Released . | . . . . . . Fabnet Peak Effective % . | . . . . . . Robots Rewired . | . . . . . . Allies Hacked . | . . . . . . Hacks Repelled . | . . . . . . Allies | -11 -10 -9 -8 -7 -7 -------- Run | Yrd Mat Mat Mat Fac Low Total Allies . | . . . . . . Largest Group . | . . . . . . Highest-Rated Group . | . . . . . . Highest-Rated Ally . | . . . . . . Total Orders . | . . . . . . Ally Attacks . | . . . . . . Total Damage . | . . . . . . Kills . | . . . . . . Allies Corrupted . | . . . . . . Allies Melted . | . . . . . . Intel | -11 -10 -9 -8 -7 -7 ------- Run | Yrd Mat Mat Mat Fac Low Robot Analysis Total . | . . . . . . Derelict Logs Recovered . | . . . . . . Drone Launches . | . . . . . . Drone Recoveries . | . . . . . . Exploration | -11 -10 -9 -8 -7 -7 ------------- Run | Yrd Mat Mat Mat Fac Low Turns Passed 4198 | 189 562 1875 406 975 191 Spaces Moved 2923 | 97 312 1135 355 870 154 Core 16 | 16 . . . . . Treads 1141 | 81 312 748 . . . Legs . | . . . . . . Wheels 1619 | . . 240 355 870 154 Hover 147 | . . 147 . . . Flight . | . . . . . . Fastest Speed 50 | 50 160 90 90 90 120 Average Speed 126 | 144 160 142 100 104 120 Slowest Speed 200 | 160 160 200 105 105 120 Overloaded Moves . | . . . . . . Propulsion Burnouts . | . . . . . . Robots Hopped . | . . . . . . Cave-ins Triggered 1 | . . 1 . . . Exploration Rate (%) 29 | 6 40 62 27 15 25 Regions Visited 5 Branch Regions 1 Pre-discovered Areas . | . . . . . . Known Exits Taken 3 | . 1 1 1 . . Unknown Exits Taken 2 | 1 . . . 1 . Scrap Searched . | . . . . . . Spaces Dug . | . . . . . . Terrain Destroyed 74 | . . 17 57 . . Melee . | . . . . . . Projectile 1 | . . 1 . . . AOE 73 | . . 16 57 . . Terrain Rammed . | . . . . . . Walls Destroyed . | . . . . . . Machines Disabled . | . . . . . . Actions | -11 -10 -9 -8 -7 -7 --------- Run | Yrd Mat Mat Mat Fac Low Total 3180 | 124 340 1265 379 913 159 Wait . | . . . . . . Move 2918 | 96 311 1134 354 869 154 Hop . | . . . . . . Pick Up 46 | 9 5 19 6 7 . Fast Attach 2 | . . 1 1 . . Attach 23 | 7 . 7 3 2 4 Detach . | . . . . . . Swap 41 | . 4 27 2 7 1 Drop 24 | . 2 16 3 3 . Fire 116 | 12 18 60 10 16 . Melee . | . . . . . . Ram 1 | . . . . 1 . Kick . | . . . . . . Crush 1 | . . 1 . . . Escape Stasis 8 | . . . . 8 . Rewire . | . . . . . . Trap . | . . . . . . Miscellaneous . | . . . . . . Route ------- -11/Scrapyard -10/Materials -9/Materials (discovered 2 exits: *Mat / *Min) -8/Materials (discovered 3 exits: *Fac / *Sto x2) -7/Factory (discovered 2 exits: [*Fac] / [*Low]) -7/Lower Caves History --------- Turn | Location | Event 14 | -11/Scrapyard | Discovered new exit (range 15) 190 | -11/Scrapyard | Entered Materials 310 | -10/Materials | Build established: Mutant 732 | -10/Materials | Discovered new exit (range 7) 749 | -10/Materials | Identified exit to Materials 752 | -10/Materials | Entered another Materials area 752 | -9/Materials | Evolved 2 slots: Utility x1, Weapon x1 1038 | -9/Materials | Build established: Skirmisher 1539 | -9/Materials | Crushed by falling debris 1570 | -9/Materials | Lost 3 parts (1n1u1w) 1802 | -9/Materials | Discovered new exit (range 16) 2158 | -9/Materials | Identified exit to Mines 2351 | -9/Materials | Build established: Scavenger-Skirmisher 2556 | -9/Materials | Discovered new exit (range 11) 2627 | -9/Materials | Identified exit to Materials 2627 | -9/Materials | Entered another Materials area 2627 | -8/Materials | Evolved 2 slots: Utility x1, Weapon x1 2632 | -8/Materials | Discovered new exit (range 18) 2646 | -8/Materials | Identified exit to Storage 2716 | -8/Materials | Discovered exit to Storage (range 6) 2912 | -8/Materials | Repaired Adv. EMP Blaster? 2964 | -8/Materials | Met 7R-MNS 3013 | -8/Materials | Discovered new exit (range 17) 3032 | -8/Materials | Identified exit to Factory 3033 | -8/Materials | Entered Factory 3033 | -7/Factory | Evolved 2 slots: Power x1, Weapon x1 3034 | -7/Factory | Caught up to 7R-MNS 3065 | -7/Factory | Discovered new exit (range 5) 3127 | -7/Factory | Build established: Skirmisher 3368 | -7/Factory | Discovered new exit (range 11) 3583 | -7/Factory | Build established: Infiltrator-Skirmisher 3992 | -7/Factory | Lost 3 parts (1p2w) 4008 | -7/Factory | Entered Lower Caves 4199 | -7/Lower Caves | Self-destructed Last Messages --------------- 03936_ U-05 Engineer lays Concrete. 03939_ U-05 Engineer builds a Wall. 03939_ U-05 Engineer lays Concrete. 03955_ EM Pulse Cannon destroyed. 03957_ ALERT: Hostiles spotted, dispatching reinforcements to Terminal F007. 03961_ Hvy. Particle Cannon destroyed. Your per-turn energy upkeep is currently significantly in the negative, which may be okay for now but be prepared to manage it more closely. 03983_ Slammed into K-01 Serf. 03994_ Imp. Ion Engine destroyed. 03998_ System corrupted: Energy discharge (-19). LOCATION=UNKNOWN GOAL=ESCAPE 04050_ XJIJ#B>BZ